fUST/lending_fUST_20240409
["ID","MTS","AMOUNT","RATE_DAILY","PERIOD"]
[321965615,1712653846817,-500.0,0.00036164,5]
[321965616,1712653846827,-500.0,0.00036164,5]
[321965617,1712653846837,-1173.49,0.00036164,5]
[321965618,1712653846850,-500.0,0.00036164,5]
[321965619,1712653846860,-500.0,0.00036164,5]
[321965620,1712653846869,-500.0,0.00036164,5]
[321965621,1712653846879,-337.97382747,0.00036164,5]
[321965622,1712653846890,-500.0,0.00036164,5]
[321965623,1712653846898,-500.0,0.00036164,5]
[321965624,1712653846907,-500.0,0.00036164,5]
[321965625,1712653846917,-500.0,0.00036164,5]
[321965626,1712653846927,-500.0,0.00036164,5]
[321965627,1712653846937,-500.0,0.00036164,5]
[321965628,1712653846947,-500.0,0.00036164,5]
[321965629,1712653846956,-500.0,0.00036164,5]
[321965630,1712653846965,-500.0,0.00036164,5]
[321965631,1712653846975,-500.0,0.00036164,5]
[321965632,1712653846984,-764.71,0.00036164,5]
[321965633,1712653846993,-1785.73,0.00036164,5]
[321965634,1712653847002,-500.0,0.00036164,5]
[321965635,1712653847012,-500.0,0.00036164,5]
[321965636,1712653847021,-500.0,0.00036164,5]
[321965637,1712653847030,-602.67,0.00036164,5]
[321965638,1712653847040,-500.0,0.00036164,5]
[321965639,1712653847049,-1211.98,0.00036164,5]
[321965640,1712653847059,-500.0,0.00036164,5]
[321965641,1712653847069,-500.0,0.00036164,5]
[321965642,1712653847079,-500.0,0.00036164,5]
[321965643,1712653847088,-447.50773548,0.00036164,5]
[321965644,1712653847098,-500.0,0.00036164,5]
[321965645,1712653847107,-500.0,0.00036164,5]
[321965646,1712653847118,-500.0,0.00036164,5]
[321965647,1712653847135,-500.0,0.00036164,5]
[321965648,1712653847145,-500.0,0.00036164,5]
[321965649,1712653847154,-764.83,0.00036164,2]
[321965650,1712653847163,-108.23068007,0.00036164,5]
[321965685,1712654846130,-382.7744569,0.00027389,2]
[321965686,1712654847088,-485.59085518,0.00027389,2]
[321965687,1712654847112,-785.60483116,0.00027389,2]
[321965691,1712654945113,-263.43758151,0.00025288,2]
[321965692,1712654945137,-191.54692004,0.00025289,2]
[321965712,1712655032678,-257.03183136,0.00025289,2]
[321965713,1712655032688,-178.169644,0.00026492,2]
[321965714,1712655032697,-153.94352923,0.00027135,2]
[321965715,1712655032706,-300.0,0.00027235,2]
[321965716,1712655032715,-291.22567541,0.00027235,2]
[321965717,1712655032734,-3444.58790144,0.00027235,2]
[321965718,1712655032743,-10729.34911773,0.00027236,2]
[321965768,1712655038382,-14170.65088227,0.00027236,2]
[321965769,1712655038393,-224.32381746,0.00027296,3]
[321965770,1712655038404,-655.460987,0.00027388,2]
[321965771,1712655038414,-19135.52113988,0.00027393,2]
[321965772,1712655038426,-1586.04568408,0.00027396,2]
[321965773,1712655038437,-165.674187,0.00027397,2]
[321965774,1712655038448,-164.872647,0.00027397,2]
[321965775,1712655038459,-162.146689,0.00027397,2]
[321965776,1712655038470,-776.1696414,0.00028838,2]
[321965777,1712655038481,-1652.5402603,0.00028929,2]
[321965778,1712655038491,-1550.7402959,0.00028929,2]
[321965779,1712655038502,-224.32381739,0.00028979,4]
[321965780,1712655038514,-420.0,0.00029959,2]
[321965781,1712655038524,-229.304059,0.0003011,2]
[321965782,1712655038535,-448.5787514,0.00030289,2]
[321965783,1712655038545,-224.32381739,0.00030662,5]
[321965784,1712655038555,-1379.0563841,0.0003129,2]
[321965785,1712655038566,-2460.9167253,0.00032165,2]
[321965786,1712655038576,-224.32381739,0.00032345,6]
[321965787,1712655038587,-166.666666,0.00032877,2]
[321965788,1712655038597,-587.0,0.00032955,2]
[321965789,1712655038609,-165.674187,0.00033486,2]
[321965790,1712655038619,-164.872647,0.00033486,2]
[321965791,1712655038629,-166.666666,0.00033646,2]
[321965792,1712655038639,-224.32381739,0.00034029,6]
[321965793,1712655038649,-166.666666,0.00034415,2]
[321965794,1712655038660,-166.666666,0.00035185,2]
[321965795,1712655038670,-306.0,0.00035278,2]
[321965796,1712655038680,-448.5787514,0.00035289,2]
[321965797,1712655038690,-2000.0,0.00035516,2]
[321965798,1712655038701,-384.93625314,0.00035612,4]
[321965799,1712655038711,-199.81778564,0.00035612,4]
[321965800,1712655038721,-371.98712946,0.00035612,4]
[321965801,1712655038732,-482.9432174,0.00035613,7]
[321965802,1712655038742,-338.16371369,0.00035614,7]
[321965803,1712655038752,-1206.97084231,0.00035614,4]
[321965804,1712655038763,-530.19178331,0.00035614,4]
[321965805,1712655038774,-179.48021003,0.00035614,4]
[321965806,1712655038785,-682.32292248,0.00035614,4]
[321965807,1712655038795,-698.07663535,0.00035614,4]
[321965808,1712655038806,-241.89768426,0.00035614,4]
[321965809,1712655038816,-156.54809607,0.00035614,4]
[321965810,1712655038827,-157.26509838,0.00035614,4]
[321965811,1712655038837,-5029.3161216,0.00035614,4]
[321965812,1712655038848,-249.34736369,0.00035614,4]
[321965813,1712655038860,-4898.159679,0.00035614,4]
[321965814,1712655038870,-7973.23227667,0.00035614,7]
[321965815,1712655038881,-959.02353219,0.00035614,4]
[321965816,1712655038891,-631.73915467,0.00035614,4]
[321965817,1712655038903,-188.58893471,0.00035614,2]
[321965818,1712655038913,-158.47263869,0.00035614,4]
[321965819,1712655038924,-193.0126642,0.00035614,4]
[321965820,1712655038935,-253.46233178,0.00035614,4]
[321965821,1712655038946,-55466.10936801,0.00035614,4]
[321965822,1712655038957,-155.0,0.00035614,4]
[321965823,1712655038968,-284.02551928,0.00035614,4]
[321965824,1712655039140,-543.10798814,0.00035615,2]
[321965825,1712655039159,-158013.95417496,0.00035616,3]
[321965826,1712655039168,-500.0,0.00035616,2]
[321965827,1712655039178,-500.0,0.00035616,2]
[321965828,1712655039193,-500.0,0.00035616,2]
[321965829,1712655039202,-535.46711863,0.00035616,2]
[321965830,1712655039212,-500.0,0.00035616,2]
[321965831,1712655039222,-500.0,0.00035616,2]
[321965832,1712655039232,-311.98738144,0.00035616,2]
[321965833,1712655039241,-669.23,0.00035616,2]
[321965834,1712655039250,-500.0,0.00035616,2]
[321965835,1712655039259,-669.45,0.00035616,2]
[321965836,1712655039269,-500.0,0.00035616,2]
[321965837,1712655039278,-500.0,0.00035616,2]
[321965838,1712655039287,-500.0,0.00035616,2]
[321965839,1712655039296,-500.0,0.00035616,2]
[321965840,1712655039305,-500.0,0.00035616,2]
[321965841,1712655039314,-322.97383874,0.00035616,2]
[321965842,1712655039323,-500.0,0.00035616,2]
[321965843,1712655039332,-447.30268506,0.00035616,2]
[321965844,1712655039341,-500.0,0.00035616,2]
[321965845,1712655039350,-209.73071754,0.00035616,2]
[321965846,1712655039359,-500.0,0.00035616,2]
[321965847,1712655039369,-500.0,0.00035616,2]
[321965848,1712655039378,-500.0,0.00035616,2]
[321965849,1712655039387,-500.0,0.00035616,2]
[321965850,1712655039396,-500.0,0.00035616,2]
[321965851,1712655039406,-500.0,0.00035616,2]
[321965852,1712655039414,-500.0,0.00035616,2]
[321965853,1712655039424,-500.0,0.00035616,2]
[321965854,1712655039433,-500.0,0.00035616,2]
[321965855,1712655039442,-500.0,0.00035616,2]
[321965856,1712655039451,-500.0,0.00035616,2]
[321965857,1712655039460,-500.0,0.00035616,2]
[321965858,1712655039469,-500.0,0.00035616,2]
[321965859,1712655039478,-500.0,0.00035616,2]
[321965860,1712655039487,-500.0,0.00035616,2]
[321965861,1712655039495,-500.0,0.00035616,2]
[321965862,1712655039505,-300.0,0.00035616,2]
[321965863,1712655039514,-500.0,0.00035616,2]
[321965864,1712655039522,-585.2318823,0.00035616,2]
[321965865,1712655039531,-501.97133587,0.00035616,30]
[321965866,1712655039540,-500.0,0.00035616,2]
[321965867,1712655039549,-1000.0,0.00035616,2]
[321965868,1712655039558,-501.50341539,0.00035616,2]
[321965869,1712655039567,-374.5924307,0.00035616,2]
[321965870,1712655039576,-500.77374777,0.00035616,2]
[321965871,1712655039585,-500.63695796,0.00035616,2]
[321965872,1712655039595,-500.0,0.00035616,2]
[321965873,1712655039604,-500.0,0.00035616,2]
[321965874,1712655039613,-500.0,0.00035616,2]
[321965875,1712655039623,-500.0,0.00035616,2]
[321965876,1712655039633,-500.0,0.00035616,2]
[321965877,1712655039643,-504.48504271,0.00035616,2]
[321965878,1712655039654,-500.0,0.00035616,2]
[321965880,1712655039663,-500.0,0.00035616,2]
[321965882,1712655039673,-500.71028346,0.00035616,2]
[321965884,1712655039685,-500.0,0.00035616,2]
[321965885,1712655039694,-500.0,0.00035616,2]
[321965886,1712655039703,-500.0,0.00035616,2]
[321965887,1712655039712,-500.0,0.00035616,2]
[321965889,1712655039721,-500.0,0.00035616,2]
[321965891,1712655039731,-500.0,0.00035616,2]
[321965893,1712655039740,-500.0,0.00035616,2]
[321965894,1712655039749,-500.0,0.00035616,2]
[321965896,1712655039758,-500.0,0.00035616,2]
[321965898,1712655039768,-501.15600288,0.00035616,2]
[321965899,1712655039777,-500.0,0.00035616,14]
[321965901,1712655039786,-501.82630852,0.00035616,2]
[321965903,1712655039795,-500.0,0.00035616,2]
[321965905,1712655039805,-552.45,0.00035616,2]
[321965907,1712655039814,-500.0,0.00035616,2]
[321965909,1712655039823,-500.0,0.00035616,2]
[321965911,1712655039832,-500.0,0.00035616,2]
[321965913,1712655039841,-500.0,0.00035616,2]
[321965914,1712655039850,-500.0,0.00035616,2]
[321965915,1712655039860,-557.55,0.00035616,2]
[321965916,1712655039869,-500.0,0.00035616,2]
[321965917,1712655039878,-500.0,0.00035616,2]
[321965918,1712655039887,-500.0,0.00035616,2]
[321965919,1712655039898,-500.0,0.00035616,2]
[321965920,1712655039908,-500.0,0.00035616,2]
[321965921,1712655039917,-500.0,0.00035616,2]
[321965922,1712655039926,-500.0,0.00035616,2]
[321965923,1712655039935,-227.19255023,0.00035616,2]
[321965924,1712655039944,-500.0,0.00035616,2]
[321965925,1712655039953,-500.0,0.00035616,2]
[321965927,1712655039962,-500.0,0.00035616,2]
[321965929,1712655039971,-500.0,0.00035616,2]
[321965930,1712655039980,-500.0,0.00035616,2]
[321965932,1712655039989,-500.0,0.00035616,2]
[321965934,1712655039998,-500.0,0.00035616,2]
[321965936,1712655040008,-500.0,0.00035616,2]
[321965938,1712655040017,-1110.99,0.00035616,2]
[321965940,1712655040026,-500.0,0.00035616,2]
[321965942,1712655040036,-500.0,0.00035616,2]
[321965944,1712655040046,-500.0,0.00035616,2]
[321965946,1712655040055,-920.38,0.00035616,2]
[321965947,1712655040064,-203.35958831,0.00035616,2]
[321965948,1712655040072,-598.35,0.00035616,2]
[321965950,1712655040081,-500.0,0.00035616,2]
[321965952,1712655040091,-500.0,0.00035616,2]
[321965954,1712655040100,-680.63,0.00035616,2]
[321965956,1712655040110,-155.56708048,0.00035616,2]
[321965958,1712655040119,-337.43909331,0.00035616,2]
[321965959,1712655040128,-500.0,0.00035616,2]
[321965960,1712655040137,-500.0,0.00035616,2]
[321965961,1712655040149,-500.0,0.00035616,2]
[321965962,1712655040159,-699.29,0.00035616,2]
[321965964,1712655040168,-500.0,0.00035616,2]
[321965966,1712655040177,-500.0,0.00035616,2]
[321965968,1712655040186,-500.0,0.00035616,2]
[321965970,1712655040196,-500.0,0.00035616,2]
[321965972,1712655040205,-500.0,0.00035616,2]
[321965974,1712655040215,-500.0,0.00035616,2]
[321965975,1712655040224,-500.0,0.00035616,2]
[321965976,1712655040233,-153.20965356,0.00035616,2]
[321965978,1712655040242,-500.0,0.00035616,2]
[321965979,1712655040251,-500.0,0.00035616,2]
[321965980,1712655040260,-1669.19,0.00035616,2]
[321965982,1712655040270,-500.0,0.00035616,2]
[321965983,1712655040279,-500.0,0.00035616,2]
[321965985,1712655040289,-500.0,0.00035616,2]
[321965987,1712655040298,-1378.38,0.00035616,2]
[321965989,1712655040307,-500.0,0.00035616,2]
[321965991,1712655040317,-500.0,0.00035616,2]
[321965993,1712655040326,-500.0,0.00035616,2]
[321965995,1712655040335,-500.0,0.00035616,2]
[321965997,1712655040345,-694.15,0.00035616,2]
[321965999,1712655040355,-510.78363155,0.00035616,2]
[321966001,1712655040364,-500.0,0.00035616,2]
[321966003,1712655040373,-500.0,0.00035616,2]
[321966005,1712655040382,-500.0,0.00035616,2]
[321966007,1712655040391,-500.0,0.00035616,2]
[321966009,1712655040400,-500.0,0.00035616,2]
[321966011,1712655040410,-500.0,0.00035616,2]
[321966013,1712655040419,-500.0,0.00035616,2]
[321966015,1712655040429,-500.0,0.00035616,2]
[321966017,1712655040438,-500.0,0.00035616,2]
[321966019,1712655040447,-500.0,0.00035616,2]
[321966021,1712655040456,-500.0,0.00035616,2]
[321966023,1712655040465,-500.0,0.00035616,2]
[321966025,1712655040474,-500.0,0.00035616,2]
[321966027,1712655040484,-500.0,0.00035616,2]
[321966029,1712655040495,-500.0,0.00035616,2]
[321966032,1712655040504,-500.0,0.00035616,2]
[321966033,1712655040514,-1000.0,0.00035616,10]
[321966035,1712655040524,-1000.0,0.00035616,10]
[321966037,1712655040533,-1000.0,0.00035616,10]
[321966039,1712655040543,-1000.0,0.00035616,10]
[321966041,1712655040553,-1000.0,0.00035616,10]
[321966043,1712655040562,-1000.0,0.00035616,10]
[321966045,1712655040571,-1000.0,0.00035616,10]
[321966047,1712655040580,-1000.0,0.00035616,10]
[321966049,1712655040589,-1000.0,0.00035616,10]
[321966051,1712655040598,-1000.0,0.00035616,10]
[321966053,1712655040609,-1000.0,0.00035616,10]
[321966055,1712655040619,-1000.0,0.00035616,10]
[321966056,1712655040628,-1000.0,0.00035616,10]
[321966057,1712655040637,-1000.0,0.00035616,10]
[321966058,1712655040646,-1000.0,0.00035616,10]
[321966059,1712655040655,-1000.0,0.00035616,10]
[321966060,1712655040664,-1000.0,0.00035616,10]
[321966061,1712655040673,-1000.0,0.00035616,10]
[321966062,1712655040683,-1000.0,0.00035616,10]
[321966063,1712655040692,-1000.0,0.00035616,10]
[321966064,1712655040701,-500.0,0.00035616,2]
[321966065,1712655040710,-1104.92777759,0.00035616,10]
[321966066,1712655040719,-500.0,0.00035616,2]
[321966067,1712655040728,-227.25539234,0.00035616,2]
[321966068,1712655040738,-500.0,0.00035616,2]
[321966069,1712655040747,-500.0,0.00035616,2]
[321966070,1712655040756,-500.0,0.00035616,2]
[321966071,1712655040765,-500.0,0.00035616,2]
[321966072,1712655040774,-500.0,0.00035616,2]
[321966073,1712655040784,-500.0,0.00035616,2]
[321966074,1712655040793,-500.0,0.00035616,2]
[321966075,1712655040802,-500.0,0.00035616,2]
[321966076,1712655040811,-500.0,0.00035616,2]
[321966077,1712655040822,-196.280638,0.00035616,2]
[321966078,1712655040831,-500.0,0.00035616,2]
[321966079,1712655040841,-500.0,0.00035616,2]
[321966080,1712655040852,-154.98450155,0.00035616,2]
[321966081,1712655040863,-500.0,0.00035616,2]
[321966082,1712655040878,-500.0,0.00035616,2]
[321966083,1712655040888,-172.4328642,0.00035616,2]
[321966084,1712655040902,-500.0,0.00035616,2]
[321966085,1712655040912,-500.0,0.00035616,2]
[321966086,1712655040921,-500.0,0.00035616,2]
[321966087,1712655040930,-500.0,0.00035616,2]
[321966088,1712655040939,-500.0,0.00035616,2]
[321966089,1712655040948,-500.0,0.00035616,2]
[321966090,1712655040958,-500.0,0.00035616,2]
[321966091,1712655040967,-500.0,0.00035616,2]
[321966092,1712655040976,-500.0,0.00035616,2]
[321966093,1712655040986,-500.0,0.00035616,2]
[321966094,1712655040998,-12477.29,0.00035616,2]
[321966095,1712655041007,-500.0,0.00035616,2]
[321966096,1712655041017,-500.0,0.00035616,2]
[321966097,1712655041026,-500.0,0.00035616,2]
[321966098,1712655041035,-500.0,0.00035616,2]
[321966099,1712655041045,-500.0,0.00035616,2]
[321966100,1712655041054,-501.3228882,0.00035616,2]
[321966101,1712655041063,-500.0,0.00035616,2]
[321966102,1712655041072,-501.11126677,0.00035616,2]
[321966103,1712655041082,-500.0,0.00035616,2]
[321966104,1712655041091,-308.75985958,0.00035616,2]
[321966105,1712655041100,-500.0,0.00035616,2]
[321966106,1712655041111,-500.0,0.00035616,2]
[321966107,1712655041120,-220.13815965,0.00035616,2]
[321966108,1712655041129,-2468.87,0.00035616,2]
[321966109,1712655041139,-820.07,0.00035616,2]
[321966110,1712655041154,-500.0,0.00035616,2]
[321966111,1712655041163,-500.0,0.00035616,2]
[321966112,1712655041173,-500.0,0.00035616,2]
[321966113,1712655041183,-1103.78,0.00035616,2]
[321966114,1712655041194,-500.0,0.00035616,2]
[321966115,1712655041203,-500.0,0.00035616,2]
[321966116,1712655041212,-500.0,0.00035616,2]
[321966117,1712655041222,-500.0,0.00035616,2]
[321966118,1712655041232,-500.0,0.00035616,2]
[321966119,1712655041241,-500.7657084,0.00035616,2]
[321966120,1712655041250,-500.0,0.00035616,2]
[321966121,1712655041259,-500.0,0.00035616,2]
[321966122,1712655041269,-500.0,0.00035616,2]
[321966123,1712655041278,-5048.76,0.00035616,2]
[321966124,1712655041287,-500.0,0.00035616,2]
[321966125,1712655041296,-500.0,0.00035616,2]
[321966126,1712655041306,-500.0,0.00035616,2]
[321966127,1712655041315,-500.0,0.00035616,2]
[321966128,1712655041325,-236.6693551,0.00035616,2]
[321966129,1712655041334,-500.0,0.00035616,2]
[321966130,1712655041343,-514.04904968,0.00035616,2]
[321966131,1712655041353,-500.0,0.00035616,2]
[321966132,1712655041363,-500.0,0.00035616,2]
[321966133,1712655041372,-4275.85,0.00035616,2]
[321966134,1712655041382,-500.0,0.00035616,2]
[321966135,1712655041391,-1125.52,0.00035616,2]
[321966136,1712655041399,-2377.27,0.00035616,2]
[321966137,1712655041408,-500.0,0.00035616,2]
[321966138,1712655041418,-500.0,0.00035616,2]
[321966139,1712655041426,-164.8734558,0.00035616,2]
[321966140,1712655041436,-500.0,0.00035616,2]
[321966141,1712655041445,-500.0,0.00035616,2]
[321966142,1712655041454,-500.0,0.00035616,2]
[321966143,1712655041463,-500.0,0.00035616,2]
[321966144,1712655041473,-500.0,0.00035616,2]
[321966145,1712655041482,-853.4207708,0.00035616,2]
[321966147,1712655042477,-256.7292292,0.00035616,2]
[321966149,1712655042487,-180.43505414,0.00035616,2]
[321966150,1712655042496,-500.0,0.00035616,2]
[321966151,1712655042506,-500.0,0.00035616,2]
[321966152,1712655042516,-500.0,0.00035616,2]
[321966153,1712655042526,-500.0,0.00035616,2]
[321966154,1712655042535,-500.0,0.00035616,2]
[321966155,1712655042545,-611.87652153,0.00035616,2]
[321966156,1712655042554,-500.0,0.00035616,2]
[321966157,1712655042564,-660.23,0.00035616,2]
[321966158,1712655042573,-500.0,0.00035616,2]
[321966159,1712655042582,-294.44027,0.00035616,2]
[321966160,1712655042594,-207.99700925,0.00035616,2]
[321966161,1712655042603,-195.17299091,0.00035616,2]
[321966183,1712655043804,-304.82700909,0.00035616,2]
[321966184,1712655043923,-180.06579091,0.00035616,2]
[321966277,1712655047402,-1435.34420909,0.00035616,2]
[321966278,1712655047412,-122.11329064,0.00035616,2]
[321966300,1712656025110,-168.24286305,0.00026088,3]
[321966301,1712656025137,-196.46529914,0.00026185,2]
[321966302,1712656026090,-361.98664956,0.00026185,2]
[321966303,1712656026111,-2286.76811168,0.00026185,2]
[321966304,1712656035126,-1449.04546517,0.00026185,2]
[321966305,1712656035146,-213.09524711,0.00026186,2]
[321966307,1712656153101,-395.66134568,0.00026185,2]
[321966341,1712656232779,-300.0,0.00026183,2]
[321966343,1712656232789,-271.73694072,0.00026183,2]
[321966387,1712656238402,-28.26305928,0.00026183,2]
[321966388,1712656238413,-19135.52113988,0.00026184,2]
[321966389,1712656238422,-6512.74179411,0.00026185,2]
[321966390,1712656238431,-6908.40313979,0.00026185,2]
[321966391,1712656238441,-886.79559656,0.00026198,2]
[321966392,1712656238450,-163.31476414,0.00026199,2]
[321966393,1712656238459,-1963.34022795,0.00026299,2]
[321966394,1712656238468,-158.064972,0.00027397,2]
[321966395,1712656238477,-160.651511,0.00027397,2]
[321966396,1712656238488,-198.10095386,0.00028231,2]
[321966397,1712656238499,-20399.7870304,0.00028329,2]
[321966398,1712656238508,-400.0,0.00028331,2]
[321966399,1712656238518,-420.0,0.00028801,2]
[321966400,1712656238527,-250.0,0.00030345,2]
[321966401,1712656238538,-702.480193,0.00030366,2]
[321966402,1712656238547,-587.0,0.00031681,2]
[321966403,1712656238556,-166.666666,0.00032877,2]
[321966404,1712656238566,-166.666666,0.00033646,2]
[321966405,1712656238577,-166.666666,0.00034415,2]
[321966406,1712656238587,-153.0,0.00034778,2]
[321966407,1712656238597,-823.0,0.0003485,2]
[321966409,1712656238606,-202.7046065,0.00034878,2]
[321966410,1712656238616,-9771.0,0.00035,2]
[321966411,1712656238625,-4033.22888712,0.00035,2]
[321966413,1712656238635,-166.666666,0.00035185,2]
[321966414,1712656238646,-153.0,0.00035209,2]
[321966415,1712656238655,-153.0,0.00035244,2]
[321966416,1712656238665,-306.0,0.00035244,2]
[321966417,1712656238674,-153.0,0.00035244,2]
[321966418,1712656238684,-306.0,0.00035254,2]
[321966419,1712656238693,-153.0,0.00035297,2]
[321966420,1712656238703,-153.0,0.00035297,2]
[321966421,1712656238712,-153.0,0.00035297,2]
[321966422,1712656238722,-153.0,0.00035297,2]
[321966423,1712656238731,-2160.14244083,0.000353,30]
[321966424,1712656238741,-553.80188772,0.00035516,2]
[321966425,1712656238751,-10932.85034344,0.0003558,5]
[321966426,1712656238760,-188.58893471,0.00035612,2]
[321966427,1712656238770,-253.46233178,0.00035612,4]
[321966428,1712656238779,-157.26509838,0.00035612,4]
[321966429,1712656238788,-155.0,0.00035612,4]
[321966430,1712656238797,-1166.70963235,0.00035612,4]
[321966431,1712656238806,-482.82644948,0.00035612,2]
[321966432,1712656238816,-2038.2069545,0.00035612,4]
[321966433,1712656238826,-662.5256335,0.00035612,4]
[321966434,1712656238835,-156.54809607,0.00035613,4]
[321966435,1712656238844,-5029.3161216,0.00035613,4]
[321966436,1712656238853,-155.56708048,0.00035614,4]
[321966437,1712656238863,-179.48021003,0.00035614,4]
[321966438,1712656238873,-338.16371369,0.00035614,7]
[321966439,1712656238885,-193.0126642,0.00035614,4]
[321966440,1712656238895,-284.02551928,0.00035614,4]
[321966441,1712656238904,-241.89768426,0.00035614,4]
[321966442,1712656238913,-698.07663535,0.00035614,4]
[321966443,1712656238922,-158.47263869,0.00035614,4]
[321966444,1712656238932,-682.32292248,0.00035614,4]
[321966445,1712656238942,-1206.97084231,0.00035614,4]
[321966446,1712656238951,-530.19178331,0.00035614,4]
[321966447,1712656238961,-55466.10936801,0.00035614,4]
[321966448,1712656238971,-959.02353219,0.00035614,4]
[321966449,1712656238981,-249.34736369,0.00035614,4]
[321966450,1712656238990,-4898.159679,0.00035614,4]
[321966451,1712656239000,-7973.23227667,0.00035614,7]
[321966452,1712656239010,-4447.80839933,0.00035614,4]
[321966453,1712656239019,-218.96078063,0.00035614,4]
[321966454,1712656239028,-339.00505328,0.00035614,4]
[321966455,1712656239038,-365.50583545,0.00035614,4]
[321966456,1712656239047,-241.5511931,0.00035614,4]
[321966457,1712656239056,-291.33250291,0.00035614,4]
[321966458,1712656239066,-309.66063683,0.00035614,4]
[321966459,1712656239076,-3018.15584019,0.00035614,4]
[321966460,1712656239085,-336.84676511,0.00035614,4]
[321966461,1712656239094,-595.86148215,0.00035614,2]
[321966462,1712656239103,-2754.92544523,0.00035615,4]
[321966463,1712656239113,-162508.1517673,0.00035616,3]
[321966464,1712656239122,-500.0,0.00035616,2]
[321966465,1712656239132,-1013.10269998,0.00035616,4]
[321966466,1712656239142,-500.0,0.00035616,2]
[321966467,1712656239151,-500.0,0.00035616,2]
[321966468,1712656239160,-500.0,0.00035616,2]
[321966469,1712656239170,-493.6439027,0.00035616,2]
[321966470,1712656239180,-500.0,0.00035616,2]
[321966471,1712656239189,-500.0,0.00035616,2]
[321966472,1712656239198,-501.09205567,0.00035616,2]
[321966473,1712656239207,-500.0,0.00035616,2]
[321966474,1712656239216,-500.0,0.00035616,2]
[321966475,1712656239226,-249.90501089,0.00035616,2]
[321966476,1712656239235,-500.0,0.00035616,2]
[321966477,1712656239244,-500.0,0.00035616,2]
[321966478,1712656239253,-500.0,0.00035616,2]
[321966479,1712656239263,-500.0,0.00035616,2]
[321966480,1712656239273,-500.0,0.00035616,2]
[321966481,1712656239282,-500.0,0.00035616,2]
[321966482,1712656239291,-464.74934141,0.00035616,2]
[321966483,1712656239301,-215.79369428,0.00035616,2]
[321966484,1712656239310,-500.0,0.00035616,2]
[321966485,1712656239321,-500.0,0.00035616,2]
[321966486,1712656239331,-500.0,0.00035616,2]
[321966487,1712656239340,-500.0,0.00035616,2]
[321966488,1712656239350,-500.0,0.00035616,2]
[321966489,1712656239359,-337.43909331,0.00035616,2]
[321966490,1712656239368,-500.0,0.00035616,2]
[321966491,1712656239377,-500.0,0.00035616,2]
[321966492,1712656239387,-500.0,0.00035616,2]
[321966493,1712656239396,-500.0,0.00035616,2]
[321966494,1712656239404,-500.0,0.00035616,2]
[321966495,1712656239413,-500.0,0.00035616,2]
[321966496,1712656239423,-500.0,0.00035616,2]
[321966497,1712656239432,-500.0,0.00035616,2]
[321966498,1712656239441,-151.0,0.00035616,2]
[321966499,1712656239450,-500.0,0.00035616,2]
[321966500,1712656239460,-500.0,0.00035616,2]
[321966501,1712656239469,-500.0,0.00035616,2]
[321966502,1712656239478,-500.0,0.00035616,2]
[321966503,1712656239490,-500.0,0.00035616,2]
[321966504,1712656239510,-500.0,0.00035616,2]
[321966505,1712656239522,-771.72,0.00035616,2]
[321966506,1712656239531,-500.0,0.00035616,2]
[321966507,1712656239541,-500.0,0.00035616,2]
[321966508,1712656239550,-500.0,0.00035616,2]
[321966509,1712656239559,-227.25539234,0.00035616,2]